lending/lending_fUSD_20240605
["ID","MTS","AMOUNT","RATE_DAILY","PERIOD"]
[328623920,1717621855056,-821.44,0.00029997,4]
[328623921,1717621855065,-500.0,0.00029997,4]
[328623922,1717621855075,-500.0,0.00029997,4]
[328623923,1717621855084,-500.0,0.00029997,4]
[328623924,1717621855096,-500.0,0.00029997,4]
[328623925,1717621855106,-500.0,0.00029997,4]
[328623926,1717621855119,-577.12,0.00029997,4]
[328623927,1717621855280,-500.0,0.00029997,4]
[328623928,1717621855290,-500.0,0.00029997,4]
[328623929,1717621855299,-500.0,0.00029997,4]
[328623930,1717621855309,-168.80940966,0.00029998,2]
[328623931,1717621855319,-1899.51336956,0.00029998,2]
[328623932,1717621855329,-296.512316,0.00029998,2]
[328623933,1717621855341,-2819.49898177,0.00029998,2]
[328623934,1717621855352,-1082.67573678,0.00029998,2]
[328623935,1717621855361,-200.26393988,0.00029998,2]
[328623936,1717621855370,-572.59800727,0.00029998,2]
[328623937,1717621855379,-186.63588615,0.00029998,2]
[328623938,1717621855390,-155.0,0.00029998,2]
[328623939,1717621855399,-224.99281109,0.00029998,2]
[328623940,1717621855408,-877.73264139,0.00029998,3]
[328623941,1717621855417,-156.46779989,0.00029998,7]
[328623942,1717621855429,-1799.44005259,0.00029998,2]
[328623943,1717621855438,-325.53303523,0.00029998,2]
[328623944,1717621855447,-241.39477687,0.00029998,2]
[328623945,1717621855457,-453.61,0.00029998,4]
[328623946,1717621855466,-272.14,0.00029998,4]
[328623947,1717621855476,-500.0,0.00029998,4]
[328623948,1717621855485,-500.0,0.00029998,4]
[328623949,1717621855495,-500.0,0.00029998,4]
[328623950,1717621855504,-275.12,0.00029998,4]
[328623951,1717621855513,-500.0,0.00029998,4]
[328623952,1717621855523,-500.0,0.00029998,4]
[328623953,1717621855534,-500.0,0.00029998,4]
[328623954,1717621855544,-500.0,0.00029998,4]
[328623955,1717621855553,-500.0,0.00029998,4]
[328623956,1717621855562,-500.0,0.00029998,4]
[328623957,1717621855571,-500.0,0.00029998,4]
[328623958,1717621855581,-500.0,0.00029998,4]
[328623959,1717621855591,-500.0,0.00029998,4]
[328623960,1717621855602,-500.0,0.00029998,4]
[328623961,1717621855611,-243.81,0.00029998,4]
[328623962,1717621855621,-500.0,0.00029998,4]
[328623963,1717621855630,-576.17,0.00029998,4]
[328623964,1717621855640,-332.27,0.00029998,4]
[328623965,1717621855650,-165.4,0.00029998,4]
[328623966,1717621855660,-331.55,0.00029998,4]
[328623967,1717621855670,-500.0,0.00029998,4]
[328623968,1717621855680,-500.0,0.00029998,4]
[328623969,1717621855690,-556.19,0.00029998,4]
[328623970,1717621855700,-197.0,0.00029998,4]
[328623971,1717621855711,-500.0,0.00029998,4]
[328623972,1717621855721,-469.99,0.00029998,4]
[328623973,1717621855732,-534.34,0.00029998,4]
[328623974,1717621855742,-468.59,0.00029998,4]
[328623975,1717621855752,-500.0,0.00029998,4]
[328623976,1717621855762,-222.67,0.00029998,4]
[328623977,1717621855771,-584.07,0.00029998,4]
[328623978,1717621855781,-252.06,0.00029998,4]
[328623979,1717621855792,-373.37,0.00029998,4]
[328623980,1717621855801,-194.13,0.00029998,4]
[328623981,1717621855811,-500.0,0.00029998,4]
[328623982,1717621855820,-500.0,0.00029998,4]
[328623983,1717621855829,-442.29,0.00029998,4]
[328623984,1717621855838,-500.0,0.00029998,4]
[328623985,1717621855849,-500.0,0.00029998,4]
[328623986,1717621855860,-500.0,0.00029998,4]
[328623987,1717621855869,-500.0,0.00029998,4]
[328623988,1717621855879,-518.47,0.00029998,4]
[328623989,1717621855888,-500.0,0.00029998,4]
[328623990,1717621855898,-552.48,0.00029998,4]
[328623991,1717621855907,-316.33,0.00029998,4]
[328623992,1717621855916,-187.06807244,0.00029998,4]
[328623993,1717621855925,-150.0,0.00029998,4]
[328623994,1717621855935,-150.0,0.00029998,4]
[328623995,1717621855947,-204.33,0.00029998,4]
[328623996,1717621855956,-405.75,0.00029998,4]
[328623997,1717621855965,-500.0,0.00029998,4]
[328623998,1717621855974,-553.42,0.00029998,4]
[328623999,1717621855983,-500.0,0.00029998,4]
[328624000,1717621855993,-295.97,0.00029998,4]
[328624001,1717621856002,-204.34,0.00029998,4]
[328624002,1717621856011,-337.06,0.00029998,4]
[328624003,1717621856020,-151.03,0.00029998,4]
[328624004,1717621856029,-330.38,0.00029998,4]
[328624005,1717621856039,-500.0,0.00029998,4]
[328624006,1717621856049,-503.08,0.00029998,4]
[328624007,1717621856059,-320.38,0.00029998,4]
[328624008,1717621856068,-259.61,0.00029998,4]
[328624009,1717621856079,-500.0,0.00029998,4]
[328624010,1717621856089,-500.0,0.00029998,4]
[328624011,1717621856100,-500.0,0.00029998,4]
[328624012,1717621856111,-500.0,0.00029998,4]
[328624013,1717621856120,-221.18,0.00029998,4]
[328624014,1717621856132,-500.0,0.00029998,4]
[328624015,1717621856142,-500.0,0.00029998,4]
[328624016,1717621856152,-500.0,0.00029998,4]
[328624017,1717621856162,-187.91,0.00029998,4]
[328624018,1717621856171,-379.32,0.00029998,4]
[328624019,1717621856180,-348.37,0.00029998,4]
[328624020,1717621856189,-399.28,0.00029998,4]
[328624021,1717621856199,-500.0,0.00029998,4]
[328624022,1717621856208,-468.84,0.00029998,4]
[328624023,1717621856218,-334.81070105,0.00029998,4]
[328624024,1717621856227,-500.0,0.00029998,4]
[328624025,1717621856236,-272.29,0.00029998,4]
[328624026,1717621856245,-302.41,0.00029998,4]
[328624027,1717621856255,-479.96,0.00029998,4]
[328624028,1717621856264,-200.34,0.00029998,4]
[328624029,1717621856273,-459.1,0.00029998,4]
[328624030,1717621856282,-573.38,0.00029998,4]
[328624031,1717621856291,-474.39,0.00029998,4]
[328624032,1717621856302,-626.79,0.00029998,4]
[328624033,1717621856312,-445.34,0.00029998,4]
[328624034,1717621856322,-169.82,0.00029998,4]
[328624035,1717621856332,-500.0,0.00029998,4]
[328624036,1717621856344,-500.0,0.00029998,4]
[328624037,1717621856357,-263.03,0.00029998,4]
[328624038,1717621856367,-303.51,0.00029998,4]
[328624039,1717621856376,-171.54,0.00029998,4]
[328624040,1717621856386,-196.81,0.00029998,4]
[328624041,1717621856395,-304.48,0.00029998,4]
[328624042,1717621856404,-500.0,0.00029998,4]
[328624043,1717621856413,-443.89,0.00029998,4]
[328624044,1717621856422,-311.31,0.00029998,4]
[328624045,1717621856437,-414.47,0.00029998,4]
[328624046,1717621856455,-289.43,0.00029998,4]
[328624047,1717621856466,-375.36,0.00029998,4]
[328624048,1717621856475,-515.87,0.00029998,4]
[328624049,1717621856484,-164.98980478,0.00029998,4]
[328624050,1717621856495,-500.0,0.00029998,4]
[328624051,1717621856504,-334.89,0.00029998,4]
[328624052,1717621856514,-420.98,0.00029998,4]
[328624053,1717621856523,-266.13,0.00029998,4]
[328624054,1717621856534,-639.91,0.00029998,4]
[328624055,1717621856543,-512.75,0.00029998,4]
[328624056,1717621856553,-276.74,0.00029998,4]
[328624057,1717621856562,-212.47,0.00029998,4]
[328624058,1717621856572,-196.42,0.00029998,4]
[328624059,1717621856581,-361.38,0.00029998,4]
[328624060,1717621856591,-332.83,0.00029998,4]
[328624061,1717621856604,-359.65,0.00029998,4]
[328624062,1717621856614,-604.71,0.00029998,4]
[328624063,1717621856627,-508.16,0.00029998,4]
[328624064,1717621856636,-155.66,0.00029998,4]
[328624065,1717621856646,-469.12,0.00029998,4]
[328624066,1717621856656,-500.0,0.00029998,4]
[328624067,1717621856666,-500.0,0.00029998,4]
[328624068,1717621856676,-500.0,0.00029998,4]
[328624069,1717621856686,-500.0,0.00029998,4]
[328624070,1717621856696,-181.82,0.00029998,4]
[328624071,1717621856706,-274.37,0.00029998,4]
[328624072,1717621856716,-346.62,0.00029998,4]
[328624073,1717621856726,-196.45,0.00029998,4]
[328624074,1717621856736,-500.0,0.00029998,4]
[328624075,1717621856745,-500.0,0.00029998,4]
[328624076,1717621856755,-500.0,0.00029998,4]
[328624077,1717621856764,-314.86,0.00029998,4]
[328624078,1717621856775,-500.0,0.00029998,4]
[328624079,1717621856787,-500.0,0.00029998,4]
[328624080,1717621856797,-584.7,0.00029998,4]
[328624081,1717621856807,-328.36,0.00029998,4]
[328624082,1717621856818,-500.0,0.00029998,4]
[328624083,1717621856829,-206.38,0.00029998,4]
[328624084,1717621856839,-500.0,0.00029998,4]
[328624085,1717621856850,-500.0,0.00029998,4]
[328624086,1717621856860,-500.0,0.00029998,4]
[328624087,1717621856870,-500.0,0.00029998,4]
[328624088,1717621856880,-438.2,0.00029998,4]
[328624089,1717621856890,-307.95,0.00029998,4]
[328624090,1717621856899,-155.56,0.00029998,4]
[328624091,1717621856910,-500.0,0.00029998,4]
[328624092,1717621856920,-500.0,0.00029998,4]
[328624093,1717621856929,-500.0,0.00029998,4]
[328624094,1717621856939,-500.0,0.00029998,4]
[328624095,1717621856948,-619.63,0.00029998,4]
[328624096,1717621856959,-500.0,0.00029998,4]
[328624097,1717621856969,-500.0,0.00029998,4]
[328624098,1717621856979,-177.14,0.00029998,4]
[328624099,1717621856989,-502.78,0.00029998,4]
[328624100,1717621856999,-500.0,0.00029998,4]
[328624101,1717621857008,-334.46,0.00029998,4]
[328624102,1717621857017,-500.0,0.00029998,4]
[328624103,1717621857029,-500.0,0.00029998,4]
[328624104,1717621857041,-500.0,0.00029998,4]
[328624105,1717621857051,-1001.44,0.00029998,4]
[328624106,1717621857062,-1001.44,0.00029998,4]
[328624107,1717621857072,-228.82,0.00029998,4]
[328624108,1717621857196,-500.0,0.00029998,4]
[328624109,1717621857214,-500.0,0.00029998,4]
[328624110,1717621857224,-588.3,0.00029998,4]
[328624111,1717621857233,-588.3,0.00029998,4]
[328624112,1717621857243,-500.0,0.00029998,4]
[328624113,1717621857253,-295.04,0.00029998,4]
[328624114,1717621857262,-301.8,0.00029998,4]
[328624115,1717621857271,-598.96,0.00029998,4]
[328624116,1717621857280,-305.85,0.00029998,4]
[328624117,1717621857290,-500.0,0.00029998,4]
[328624118,1717621857300,-536.34,0.00029998,4]
[328624119,1717621857313,-500.0,0.00029998,4]
[328624120,1717621857322,-380.49,0.00029998,4]
[328624121,1717621857331,-500.0,0.00029998,4]
[328624122,1717621857342,-500.0,0.00029998,4]
[328624123,1717621857357,-500.0,0.00029998,4]
[328624124,1717621857367,-500.0,0.00029998,4]
[328624125,1717621857378,-500.0,0.00029998,4]
[328624126,1717621857390,-463.33,0.00029998,4]
[328624127,1717621857401,-492.52,0.00029998,4]
[328624128,1717621857411,-500.0,0.00029998,4]
[328624129,1717621857422,-500.0,0.00029998,4]
[328624130,1717621857432,-214.19,0.00029998,4]
[328624131,1717621857442,-500.0,0.00029998,4]
[328624132,1717621857452,-500.0,0.00029998,4]
[328624133,1717621857462,-611.33,0.00029998,4]
[328624134,1717621857472,-500.0,0.00029998,4]
[328624135,1717621857482,-500.0,0.00029998,4]
[328624136,1717621857492,-500.0,0.00029998,4]
[328624137,1717621857502,-158.64,0.00029998,4]
[328624138,1717621857512,-269.44,0.00029998,4]
[328624139,1717621857521,-1122.1,0.00029998,4]
[328624140,1717621857530,-500.0,0.00029998,4]
[328624141,1717621857540,-1122.1,0.00029998,4]
[328624142,1717621857550,-500.0,0.00029998,4]
[328624143,1717621857559,-500.0,0.00029998,4]
[328624144,1717621857574,-500.0,0.00029998,4]
[328624145,1717621857590,-500.0,0.00029998,4]
[328624146,1717621857603,-500.0,0.00029998,4]
[328624147,1717621857612,-500.0,0.00029998,4]
[328624148,1717621857621,-500.0,0.00029998,4]
[328624149,1717621857631,-479.26,0.00029998,4]
[328624150,1717621857640,-500.0,0.00029998,4]
[328624151,1717621857650,-500.0,0.00029998,4]
[328624152,1717621857659,-500.0,0.00029998,4]
[328624153,1717621857668,-500.0,0.00029998,4]
[328624154,1717621857677,-500.0,0.00029998,4]
[328624155,1717621857687,-500.0,0.00029998,4]
[328624156,1717621857696,-500.0,0.00029998,4]
[328624157,1717621857706,-500.0,0.00029998,4]
[328624158,1717621857715,-500.0,0.00029998,4]
[328624159,1717621857724,-599.73,0.00029998,4]
[328624160,1717621857734,-506.21,0.00029998,4]
[328624161,1717621857743,-506.21,0.00029998,4]
[328624162,1717621857753,-514.85,0.00029998,4]
[328624163,1717621857763,-222.92,0.00029998,4]
[328624164,1717621857772,-544.75,0.00029998,4]
[328624165,1717621857781,-500.0,0.00029998,4]
[328624166,1717621857791,-340.05,0.00029998,4]
[328624167,1717621857800,-538.58,0.00029998,4]
[328624168,1717621857810,-538.58,0.00029998,4]
[328624169,1717621857824,-520.58,0.00029998,4]
[328624170,1717621857841,-520.58,0.00029998,4]
[328624171,1717621857853,-500.0,0.00029998,4]
[328624172,1717621857863,-500.0,0.00029998,4]
[328624173,1717621857872,-2381.64,0.00029998,4]
[328624174,1717621857882,-2381.64,0.00029998,4]
[328624175,1717621857891,-292.36,0.00029998,4]
[328624176,1717621857901,-500.0,0.00029998,4]
[328624177,1717621857910,-500.0,0.00029998,4]
[328624178,1717621857920,-500.0,0.00029998,4]
[328624179,1717621857929,-500.0,0.00029998,4]
[328624180,1717621857938,-500.0,0.00029998,4]
[328624181,1717621857947,-500.0,0.00029998,4]
[328624182,1717621857956,-323.0,0.00029998,4]
[328624183,1717621857965,-319.06,0.00029998,4]
[328624184,1717621857974,-500.0,0.00029998,4]
[328624185,1717621857983,-500.0,0.00029998,4]
[328624186,1717621857992,-1293.08,0.00029998,4]
[328624187,1717621858002,-1293.08,0.00029998,4]
[328624188,1717621858011,-500.0,0.00029998,4]
[328624189,1717621858020,-339.02,0.00029998,4]
[328624190,1717621858029,-500.0,0.00029998,4]
[328624191,1717621858039,-500.0,0.00029998,4]
[328624192,1717621858048,-625.92,0.00029998,4]
[328624193,1717621858057,-500.0,0.00029998,4]
[328624194,1717621858067,-610.84,0.00029998,4]
[328624195,1717621858076,-500.0,0.00029998,4]
[328624196,1717621858085,-500.0,0.00029998,4]
[328624197,1717621858096,-500.0,0.00029998,4]
[328624198,1717621858105,-500.0,0.00029998,4]
[328624199,1717621858114,-500.0,0.00029998,4]
[328624200,1717621858123,-255.53,0.00029998,4]
[328624201,1717621858132,-500.0,0.00029998,4]
[328624202,1717621858141,-500.0,0.00029998,4]
[328624203,1717621858151,-500.0,0.00029998,4]
[328624204,1717621858160,-500.0,0.00029998,4]
[328624205,1717621858170,-500.0,0.00029998,4]
[328624206,1717621858179,-379.08,0.00029998,4]
[328624207,1717621858189,-194.12,0.00029998,4]
[328624208,1717621858199,-500.0,0.00029998,4]
[328624209,1717621858208,-500.0,0.00029998,4]
[328624210,1717621858217,-500.0,0.00029998,4]
[328624211,1717621858226,-500.0,0.00029998,4]
[328624212,1717621858235,-190.34,0.00029998,4]
[328624213,1717621858245,-500.0,0.00029998,4]
[328624214,1717621858254,-500.0,0.00029998,4]
[328624215,1717621858264,-532.33428374,0.00029998,4]
[328624216,1717621858273,-500.0,0.00029998,4]
[328624217,1717621858282,-500.0,0.00029998,4]
[328624218,1717621858292,-500.0,0.00029998,4]
[328624219,1717621858302,-500.0,0.00029998,4]
[328624220,1717621858312,-500.0,0.00029998,4]
[328624221,1717621858321,-500.0,0.00029998,4]
[328624222,1717621858331,-500.0,0.00029998,4]
[328624223,1717621858343,-500.0,0.00029998,4]
[328624224,1717621858356,-500.0,0.00029998,4]
[328624225,1717621858366,-500.0,0.00029998,4]
[328624226,1717621858375,-277.43,0.00029998,4]
[328624227,1717621858386,-205.18,0.00029998,4]
[328624228,1717621858396,-460.57,0.00029998,4]
[328624229,1717621858405,-500.0,0.00029998,4]
[328624230,1717621858414,-500.0,0.00029998,4]
[328624231,1717621858424,-500.0,0.00029998,4]
[328624232,1717621858433,-296.68,0.00029998,4]
[328624233,1717621858443,-500.0,0.00029998,4]
[328624234,1717621858452,-379.01,0.00029998,4]
[328624235,1717621858461,-246.64,0.00029998,4]
[328624236,1717621858470,-500.0,0.00029998,4]
[328624237,1717621858480,-500.0,0.00029998,4]
[328624238,1717621858489,-1688.59,0.00029998,4]
[328624239,1717621858498,-1688.59,0.00029998,4]
[328624240,1717621858508,-500.0,0.00029998,4]
[328624241,1717621858517,-500.0,0.00029998,4]
[328624242,1717621858526,-347.28,0.00029998,4]
[328624243,1717621858536,-261.35,0.00029998,4]
[328624244,1717621858546,-382.24074593,0.00029998,2]
[328624245,1717621858556,-500.0,0.00029998,4]
[328624246,1717621858566,-500.0,0.00029998,4]
[328624247,1717621858576,-500.0,0.00029998,4]
[328624248,1717621858586,-500.0,0.00029998,4]
[328624249,1717621858597,-383.59,0.00029998,4]
[328624250,1717621858606,-500.0,0.00029998,4]
[328624251,1717621858616,-500.0,0.00029998,4]
[328624252,1717621858625,-499.25,0.00029998,4]
[328624253,1717621858635,-500.0,0.00029998,4]
[328624254,1717621858644,-533.8,0.00029998,4]
[328624255,1717621858654,-798.89,0.00029998,4]
[328624256,1717621858663,-323.32,0.00029998,4]
[328624257,1717621858672,-798.89,0.00029998,4]
[328624258,1717621858684,-408.76,0.00029998,4]
[328624259,1717621858694,-500.0,0.00029998,4]
[328624260,1717621858705,-500.0,0.00029998,4]
[328624261,1717621858716,-500.0,0.00029998,4]
[328624262,1717621858726,-176.57,0.00029998,4]
[328624263,1717621858737,-500.0,0.00029998,4]
[328624264,1717621858747,-500.0,0.00029998,4]
[328624265,1717621858757,-500.0,0.00029998,4]
[328624266,1717621858767,-500.0,0.00029998,4]
[328624267,1717621858777,-500.0,0.00029998,4]
[328624268,1717621858786,-245.6,0.00029998,4]
[328624269,1717621858795,-269.83,0.00029998,4]
[328624270,1717621858804,-500.0,0.00029998,4]
[328624271,1717621858813,-500.0,0.00029998,4]
[328624272,1717621858823,-500.0,0.00029998,4]
[328624273,1717621858832,-500.0,0.00029998,4]
[328624274,1717621858842,-500.0,0.00029998,4]
[328624275,1717621858854,-220.38,0.00029998,4]
[328624276,1717621858952,-500.0,0.00029998,4]
[328624277,1717621858961,-438.83,0.00029998,4]
[328624278,1717621858970,-500.0,0.00029998,4]
[328624279,1717621858980,-150.15061561,0.00029998,4]
[328624280,1717621858990,-500.0,0.00029998,4]
[328624281,1717621859001,-500.0,0.00029998,4]
[328624282,1717621859010,-500.0,0.00029998,4]
[328624283,1717621859020,-500.0,0.00029998,4]
[328624284,1717621859030,-500.0,0.00029998,4]
[328624285,1717621859040,-821.44,0.00029998,4]
[328624286,1717621859049,-821.44,0.00029998,4]
[328624287,1717621859060,-500.0,0.00029998,4]
[328624288,1717621859079,-229.95,0.00029998,4]
[328624289,1717621859090,-500.0,0.00029998,4]
[328624290,1717621859102,-500.0,0.00029998,4]
[328624291,1717621859111,-245.07,0.00029998,4]
[328624292,1717621859120,-248.31,0.00029998,4]
[328624293,1717621859129,-500.0,0.00029998,4]
[328624294,1717621859138,-500.0,0.00029998,4]
[328624295,1717621859147,-500.0,0.00029998,4]
[328624296,1717621859157,-450.43,0.00029998,4]
[328624297,1717621859166,-500.0,0.00029998,4]
[328624298,1717621859175,-500.0,0.00029998,4]
[328624299,1717621859185,-109566.85057846,0.00029999,2]
[328624300,1717621859195,-150.01,0.00029999,2]
[328624301,1717621859204,-5494.85295925,0.00029999,2]
[328624302,1717621859214,-4000.0,0.00029999,2]
[328624303,1717621859223,-500.0,0.00029999,4]
[328624304,1717621859233,-291.77,0.00029999,4]
[328624305,1717621859242,-500.0,0.00029999,4]
[328624306,1717621859252,-500.0,0.00029999,4]
[328624307,1717621859262,-500.0,0.00029999,4]
[328624308,1717621859271,-500.0,0.00029999,4]
[328624309,1717621859281,-244.52,0.00029999,4]
[328624310,1717621859290,-500.0,0.00029999,4]
[328624311,1717621859300,-161.52,0.00029999,4]
[328624312,1717621859309,-642.08,0.00029999,4]
[328624313,1717621859318,-208.59,0.00029999,4]
[328624314,1717621859327,-515.29,0.00029999,4]
[328624315,1717621859337,-602.23,0.00029999,4]
[328624316,1717621859348,-500.0,0.00029999,4]
[328624317,1717621859358,-500.0,0.00029999,4]
[328624318,1717621859367,-374.42,0.00029999,4]
[328624319,1717621859376,-347.23,0.00029999,4]
[328624320,1717621859386,-150.0,0.00029999,4]
[328624321,1717621859395,-277.67,0.00029999,4]
[328624322,1717621859405,-151.0,0.00029999,7]
[328624323,1717621859415,-514.64,0.00029999,4]
[328624324,1717621859427,-223.93,0.00029999,4]
[328624325,1717621859437,-463.03,0.00029999,4]
[328624326,1717621859446,-151.0,0.00029999,7]
[328624327,1717621859456,-151.0,0.00029999,7]
[328624328,1717621859465,-205.69,0.00029999,4]
[328624329,1717621859474,-151.0,0.00029999,7]
[328624330,1717621859484,-151.0,0.00029999,7]
[328624331,1717621859493,-151.0,0.00029999,7]
[328624332,1717621859502,-151.0,0.00029999,7]
[328624333,1717621859511,-151.0,0.00029999,7]
[328624334,1717621859520,-151.0,0.00029999,7]
[328624335,1717621859530,-153.399459,0.00029999,7]
[328624336,1717621859540,-628.46962673,0.00029999,4]
[328624337,1717621859549,-500.0,0.00029999,4]
[328624338,1717621859559,-500.0,0.00029999,4]
[328624339,1717621859568,-500.0,0.00029999,4]
[328624340,1717621859578,-500.0,0.00029999,4]
[328624341,1717621859587,-500.0,0.00029999,4]
[328624342,1717621859599,-500.0,0.00029999,4]
[328624343,1717621859607,-500.0,0.00029999,4]
[328624344,1717621859617,-500.0,0.00029999,4]
[328624345,1717621859626,-500.0,0.00029999,4]
[328624346,1717621859635,-500.0,0.00029999,4]
[328624347,1717621859644,-487.49,0.00029999,4]
[328624348,1717621859653,-500.0,0.00029999,4]
[328624349,1717621859662,-500.0,0.00029999,4]
[328624350,1717621859671,-500.0,0.00029999,4]
[328624351,1717621859680,-500.0,0.00029999,4]
[328624352,1717621859689,-500.0,0.00029999,4]
[328624353,1717621859698,-500.0,0.00029999,4]
[328624354,1717621859706,-500.0,0.00029999,4]
[328624355,1717621859716,-500.0,0.00029999,4]
[328624356,1717621859725,-500.0,0.00029999,4]
[328624357,1717621859735,-500.0,0.00029999,4]
[328624358,1717621859744,-500.0,0.00029999,4]
[328624359,1717621859753,-500.0,0.00029999,4]
[328624360,1717621859763,-500.0,0.00029999,4]
[328624361,1717621859772,-500.0,0.00029999,4]
[328624362,1717621859780,-500.0,0.00029999,4]
[328624363,1717621859789,-500.0,0.00029999,4]
[328624364,1717621859798,-500.0,0.00029999,4]
[328624365,1717621859807,-186.37,0.00029999,4]
[328624366,1717621859816,-151.677979,0.00029999,7]
[328624367,1717621859826,-500.0,0.00029999,4]
[328624368,1717621859835,-505.80651598,0.00029999,4]
[328624369,1717621859844,-319.74,0.00029999,4]
[328624370,1717621859856,-500.0,0.00029999,4]
[328624371,1717621859867,-648.15,0.00029999,4]
[328624372,1717621859887,-500.0,0.00029999,4]
[328624373,1717621859898,-500.0,0.00029999,4]
[328624374,1717621859908,-500.0,0.00029999,4]
[328624375,1717621859928,-500.0,0.00029999,4]
[328624376,1717621859939,-500.0,0.00029999,4]
[328624377,1717621859948,-500.0,0.00029999,4]
[328624378,1717621859957,-500.0,0.00029999,4]
[328624379,1717621859966,-500.0,0.00029999,4]
[328624380,1717621859976,-500.0,0.00029999,4]
[328624381,1717621859985,-500.0,0.00029999,4]
[328624382,1717621859994,-500.0,0.00029999,4]
[328624383,1717621860003,-500.0,0.00029999,4]
[328624384,1717621860013,-500.0,0.00029999,4]
[328624385,1717621860022,-500.0,0.00029999,4]
[328624386,1717621860031,-500.0,0.00029999,4]
[328624387,1717621860040,-500.0,0.00029999,4]
[328624388,1717621860049,-500.0,0.00029999,4]
[328624389,1717621860058,-400.76,0.00029999,4]
[328624390,1717621860067,-500.0,0.00029999,4]
[328624391,1717621860077,-500.0,0.00029999,4]
[328624392,1717621860086,-440.38,0.00029999,4]
[328624393,1717621860096,-500.0,0.00029999,4]
[328624394,1717621860108,-500.0,0.00029999,4]
[328624395,1717621860118,-500.0,0.00029999,4]
[328624396,1717621860127,-500.0,0.00029999,4]
[328624397,1717621860136,-151.0,0.00029999,7]
[328624398,1717621860145,-500.0,0.00029999,4]
[328624399,1717621860154,-500.0,0.00029999,4]
[328624400,1717621860163,-500.0,0.00029999,4]
[328624401,1717621860172,-500.0,0.00029999,4]
[328624402,1717621860180,-500.0,0.00029999,4]
[328624403,1717621860190,-500.0,0.00029999,4]
[328624404,1717621860199,-500.0,0.00029999,4]
[328624405,1717621860208,-500.0,0.00029999,4]
[328624406,1717621860218,-500.0,0.00029999,4]
[328624407,1717621860227,-500.0,0.00029999,4]
[328624408,1717621860236,-500.0,0.00029999,4]
[328624409,1717621860247,-415.94,0.00029999,4]
[328624410,1717621860257,-500.0,0.00029999,4]
[328624411,1717621860266,-999.0,0.00029999,7]
[328624412,1717621860275,-500.0,0.00029999,4]
[328624413,1717621860284,-1092.3,0.00029999,7]
[328624414,1717621860293,-500.0,0.00029999,4]
[328624415,1717621860302,-500.0,0.00029999,4]
[328624416,1717621860312,-500.0,0.00029999,4]
[328624417,1717621860321,-500.0,0.00029999,4]
[328624418,1717621860330,-241.9,0.00029999,4]
[328624419,1717621860339,-500.0,0.00029999,4]